lending/lending_fUSD_20240510
["ID","MTS","AMOUNT","RATE_DAILY","PERIOD"]
[326763030,1715331032844,-2771.19491311,0.00012997,2]
[326763031,1715331032854,-495.98178989,0.00012997,2]
[326763032,1715331032866,-427.03437959,0.00012997,2]
[326763034,1715331032877,-811.52822234,0.00012997,2]
[326763036,1715331032887,-155.0,0.00012997,2]
[326763037,1715331032896,-53691.11404689,0.00012998,2]
[326763038,1715331032906,-9859.89729175,0.00012999,2]
[326763039,1715331032915,-563341.97136261,0.00013,2]
[326763040,1715331032926,-3572.2509795,0.00013,2]
[326763041,1715331032950,-2288.564954,0.00013,2]
[326763042,1715331032962,-1629.76586371,0.00013,2]
[326763043,1715331032973,-6198.26527444,0.00013,2]
[326763044,1715331032985,-348356.07190805,0.00013,2]
[326763045,1715331032996,-1192.33623907,0.00013,2]
[326763046,1715331033016,-393.9,0.00013,2]
[326763047,1715331033028,-631.99312175,0.00013,2]
[326763048,1715331033055,-2596.08048655,0.00013,2]
[326763073,1715331038356,-162.41965931,0.00012832,2]
[326763078,1715331038366,-155.0,0.00012832,2]
[326763086,1715331038454,-330.45550436,0.00012832,2]
[326763087,1715331038464,-171.17046844,0.00013,2]
[326763088,1715331038475,-250.88068151,0.00013,2]
[326763089,1715331038502,-2916.54089765,0.00013,2]
[326763090,1715331038525,-3285.175,0.00013,2]
[326763091,1715331038537,-6775.96856293,0.00013,2]
[326763092,1715331038569,-7103.53077201,0.00013,2]
[326763093,1715331038612,-804083.10283951,0.00013,2]
[326763094,1715331038625,-758765.33458609,0.00013,2]
[326763095,1715331038637,-14234.99887379,0.00013,2]
[326763096,1715331038648,-1614.2,0.00013,2]
[326763097,1715331038732,-31090.26631584,0.00013,2]
[326763275,1715331040593,-683.33006705,0.00013,2]
[326763288,1715331041853,-16646.38220867,0.00013,2]
[326763289,1715331041869,-455.34,0.00013,2]
[326763290,1715331041880,-9142.38341367,0.00013,2]
[326763291,1715331041891,-11590.4789,0.00013,2]
[326763292,1715331041902,-880.188012,0.00013,2]
[326763293,1715331041913,-523.392,0.00013,2]
[326763294,1715331041924,-3239.71161728,0.00013,2]
[326763295,1715331041936,-6550.58244479,0.00013,2]
[326763296,1715331041946,-579.45888,0.00013,2]
[326763297,1715331041957,-29021.61531491,0.00013,2]
[326763300,1715331043549,-870339.34216059,0.00013,2]
[326763301,1715331043690,-579.35,0.00013,2]
[326763302,1715331043790,-3137.60000995,0.00013,2]
[326763303,1715331043907,-315590.29576478,0.00013,2]
[326763559,1715331046378,-155.86852322,0.00012999,2]
[326763560,1715331046392,-352.30538192,0.00012999,2]
[326763561,1715331046405,-8354.59049083,0.00012999,2]
[326763562,1715331046416,-424.43777084,0.00012999,2]
[326763563,1715331046429,-9969.50461426,0.00012999,2]
[326763565,1715331046440,-99701.3277295,0.00013,2]
[326763567,1715331046452,-816017.89483225,0.00013,2]
[326763570,1715331046466,-315.445,0.00013,2]
[326763574,1715331046501,-337.08969517,0.00013,2]
[326763578,1715331046521,-694.58100001,0.00013,2]
[326763580,1715331046534,-719.95798759,0.00013,2]
[326763582,1715331046547,-1441.68003764,0.00013,2]
[326763587,1715331046578,-5390.63411401,0.00013,2]
[326763730,1715332231650,-155.0,0.00012227,2]
[326763731,1715332231659,-155.0,0.00012228,2]
[326763733,1715332231668,-539.63258044,0.00012237,2]
[326763735,1715332231678,-192.17383712,0.00012248,2]
[326763737,1715332231687,-1473.71788734,0.00012347,2]
[326763738,1715332231696,-183.14401397,0.00012348,2]
[326763739,1715332231705,-250.0,0.00012676,2]
[326763740,1715332231715,-1562.45443903,0.00012693,2]
[326763741,1715332231723,-3502.08126514,0.00012736,2]
[326763742,1715332231734,-410.58,0.00012841,2]
[326763743,1715332231743,-150.0,0.00012897,2]
[326763744,1715332231752,-499.99,0.00012897,2]
[326763745,1715332231762,-40120.20599021,0.00012898,2]
[326763746,1715332231771,-21336.15303944,0.00012899,2]
[326763747,1715332231780,-432.2412,0.000129,2]
[326763748,1715332231790,-216.5535,0.000129,2]
[326763749,1715332231799,-1076.1097,0.000129,2]
[326763750,1715332231808,-1674.7609,0.000129,2]
[326763751,1715332231817,-180.3482399,0.0001299,2]
[326763752,1715332231826,-384.82,0.0001299,2]
[326763753,1715332231836,-384.82,0.0001299,2]
[326763754,1715332231845,-384.82,0.0001299,2]
[326763755,1715332231855,-2859.15129823,0.00012997,2]
[326763756,1715332231864,-155.91786055,0.00012998,2]
[326763757,1715332231873,-155.21746929,0.00012998,2]
[326763758,1715332231882,-8359.13953205,0.00012998,2]
[326763759,1715332231891,-231.29460979,0.00012999,2]
[326763760,1715332231901,-236.19318498,0.00012999,2]
[326763761,1715332231910,-477.66817523,0.00012999,2]
[326763762,1715332231919,-216.95380359,0.00012999,2]
[326763763,1715332231928,-115033.60317943,0.00013,2]
[326763764,1715332231939,-485698.15746204,0.00013,2]
[326763765,1715332231949,-409.32207997,0.00013,2]
[326763766,1715332231958,-180.00360704,0.00013,2]
[326763767,1715332231967,-10920.30881895,0.00013,2]
[326763768,1715332231976,-2103.75264,0.00013,2]
[326763769,1715332231985,-1000.0,0.00013111,2]
[326763770,1715332231994,-172.49,0.00013313,2]
[326763772,1715332232003,-150.0,0.00013386,2]
[326763774,1715332232012,-338.84,0.00013425,2]
[326763776,1715332232021,-207.04,0.00013677,2]
[326763778,1715332232030,-250.0,0.00013696,2]
[326763780,1715332232040,-500.0,0.00013698,2]
[326763781,1715332232049,-1000.0,0.00013698,5]
[326763782,1715332232058,-1000.0,0.00013698,5]
[326763783,1715332232067,-1000.0,0.00013698,5]
[326763784,1715332232076,-689.48731375,0.00013698,5]
[326763785,1715332232085,-7939.16,0.00013854,2]
[326763786,1715332232094,-153.17,0.00014131,2]
[326763788,1715332232103,-1000.0,0.0001475,2]
[326763789,1715332232112,-166.56,0.00014949,2]
[326763791,1715332232120,-282.22154129,0.00015,2]
[326763793,1715332232129,-1989.0,0.000152,2]
[326763795,1715332232139,-1000.0,0.00016389,2]
[326763797,1715332232147,-172.49,0.00016642,2]
[326763799,1715332232156,-4501.24868738,0.00017155,2]
[326763801,1715332232165,-153.17,0.00017664,2]
[326763803,1715332232174,-800.0,0.00017863,2]
[326763805,1715332232185,-800.0,0.00017863,2]
[326763806,1715332232197,-11957.47368616,0.0001788,2]
[326763808,1715332232205,-11957.47368611,0.0001788,2]
[326763810,1715332232214,-1831.02330442,0.0001788,2]
[326763812,1715332232223,-11957.47368611,0.0001788,2]
[326763814,1715332232235,-1831.02330437,0.0001788,2]
[326763816,1715332232244,-1831.02330437,0.0001788,2]
[326763818,1715332232253,-2103.75264,0.00018,2]
[326763820,1715332232262,-1000.0,0.00018028,2]
[326763822,1715332232271,-17705.0,0.000185,5]
[326763824,1715332232279,-11957.47368611,0.00018612,2]
[326763826,1715332232288,-1831.02330437,0.00018612,2]
[326763828,1715332232298,-12579.74579119,0.00019,5]
[326763830,1715332232307,-5000.0,0.00019,2]
[326763832,1715332232316,-155.0,0.00019,2]
[326763834,1715332232325,-169.06,0.00019178,2]
[326763836,1715332232334,-158.32,0.00019178,2]
[326763838,1715332232343,-154.4,0.00019178,2]
[326763840,1715332232352,-154.67,0.00019178,2]
[326763841,1715332232362,-161.33,0.00019178,2]
[326763843,1715332232371,-1000.0,0.00019666,2]
[326763845,1715332232381,-172.49,0.0001997,2]
[326763847,1715332232390,-11957.47368611,0.00020516,2]
[326763849,1715332232400,-1831.02330437,0.00020516,2]
[326763851,1715332232409,-153.17,0.00021197,2]
[326763854,1715332232419,-800.0,0.00021781,2]
[326763855,1715332232428,-214.0,0.000219,2]
[326763857,1715332232437,-2000.0,0.00021918,2]
[326763859,1715332232446,-250.0,0.00021918,2]
[326763861,1715332232455,-384.82,0.0002199,2]
[326763863,1715332232463,-37444.13549742,0.00022,2]
[326763865,1715332232472,-11957.47368611,0.0002242,2]
[326763867,1715332232481,-1831.02330437,0.0002242,2]
[326763869,1715332232490,-2103.75264,0.00023,2]
[326763871,1715332232499,-1561.71410273,0.00023981,2]
[326763873,1715332232508,-150.0,0.00023982,2]
[326763875,1715332232517,-150.0,0.00023982,2]
[326763877,1715332232526,-1398.0,0.00023982,2]
[326763879,1715332232535,-333.511,0.00023982,2]
[326763881,1715332232544,-972.0,0.00023982,2]
[326763883,1715332232554,-543.0,0.00023982,2]
[326763885,1715332232563,-1227.0,0.00023982,2]
[326763887,1715332232571,-1260.0,0.00023982,2]
[326763889,1715332232580,-1789.0,0.00023982,2]
[326763890,1715332232589,-589.338,0.00023982,2]
[326763891,1715332232598,-611.0,0.00023982,2]
[326763892,1715332232607,-434.417,0.00023982,2]
[326763893,1715332232616,-421.0,0.00023982,2]
[326763894,1715332232625,-1451.183,0.00023982,2]
[326763895,1715332232634,-2412.0,0.00023982,2]
[326763896,1715332232644,-1645.0,0.00023982,2]
[326763897,1715332232653,-215.0,0.00023982,2]
[326763898,1715332232662,-1202.046,0.00023982,2]
[326763899,1715332232671,-444.0,0.00023982,2]
[326763900,1715332232680,-3155.0,0.00023982,2]
[326763901,1715332232689,-1059.756,0.00023982,2]
[326763902,1715332232699,-288.0,0.00023982,2]
[326763903,1715332232709,-5747.0,0.00023982,2]
[326763904,1715332232718,-5909.0,0.00023982,2]
[326763905,1715332232727,-37815.0,0.00023982,2]
[326763906,1715332232736,-2295.0,0.00023982,2]
[326763907,1715332232745,-1072.80775125,0.00024,2]
[326763908,1715332232754,-180.0,0.0002423,2]
[326763909,1715332232763,-11957.47368611,0.00024324,2]
[326763910,1715332232773,-1831.02330437,0.00024324,2]
[326763911,1715332232782,-156.90148724,0.00024656,2]
[326763912,1715332232791,-285.90804803,0.00024656,2]
[326763913,1715332232800,-716.17723846,0.00024656,2]
[326763914,1715332232809,-250.0,0.00024658,2]
[326763915,1715332232819,-338.84,0.00024658,2]
[326763916,1715332232828,-156.58137197,0.0002481,2]
[326763917,1715332232837,-384.82,0.0002489,2]
[326763918,1715332232846,-384.82,0.0002489,2]
[326763919,1715332232854,-384.82,0.0002489,2]
[326763920,1715332232863,-384.82,0.0002489,2]
[326763921,1715332232872,-216.75000991,0.00024897,5]
[326763922,1715332232882,-171.17183143,0.000249,2]
[326763923,1715332232890,-2574.0,0.000249,2]
[326763924,1715332232900,-874396.49694362,0.000249,6]
[326763925,1715332232909,-207.04,0.00024909,2]
[326763926,1715332232918,-9204.34601213,0.0002499,2]
[326763927,1715332232926,-180.3482399,0.0002499,2]
[326763928,1715332232935,-925.8669637,0.00025,2]
[326763929,1715332232944,-473.75819432,0.00025,2]
[326763930,1715332232953,-156.25831747,0.00025,2]
[326763931,1715332232962,-2228.50297166,0.00025,2]
[326763932,1715332232971,-12641.25830243,0.00025,2]
[326763933,1715332232980,-156.04521652,0.00025,2]
[326763934,1715332232990,-365.02684927,0.00025,2]
[326763935,1715332232999,-1013.27802352,0.00025,2]
[326763936,1715332233008,-1409.82367348,0.00025,4]
[326763937,1715332233017,-1000.0,0.00025,2]
[326763938,1715332233026,-529.0,0.00025,2]
[326763939,1715332233034,-150.0,0.00025171,2]
[326763940,1715332233043,-150.0,0.00025217,2]
[326763941,1715332233052,-150.0,0.00025231,2]
[326763942,1715332233061,-190.02,0.0002537,2]
[326763943,1715332233070,-384.82,0.00025415,2]
[326763944,1715332233079,-868.43,0.00025425,2]
[326763945,1715332233088,-868.43,0.00025425,2]
[326763946,1715332233098,-868.43,0.00025425,2]
[326763947,1715332233107,-153.51665931,0.00025448,2]
[326763948,1715332233115,-150.0,0.00025475,2]
[326763949,1715332233124,-150.0,0.00025481,2]
[326763950,1715332233134,-150.0,0.00025513,2]
[326763951,1715332233143,-150.0,0.0002552,2]
[326763952,1715332233153,-150.0,0.00025597,2]
[326763953,1715332233162,-522.51,0.00025644,2]
[326763954,1715332233171,-150.0,0.00025699,2]
[326763955,1715332233181,-150.0,0.00025699,2]
[326763956,1715332233195,-523.32,0.00025699,2]
[326763957,1715332233204,-150.0,0.00025699,2]
[326763958,1715332233213,-150.0,0.00025699,2]
[326763959,1715332233223,-523.32,0.00025699,2]
[326763960,1715332233233,-150.0,0.00025739,2]
[326763961,1715332233242,-150.0,0.0002574,2]
[326763962,1715332233252,-150.0,0.00025748,2]
[326763963,1715332233262,-150.0,0.00025753,2]
[326763964,1715332233273,-522.53,0.00025753,2]
[326763965,1715332233283,-150.0,0.00025755,2]
[326763966,1715332233292,-150.0,0.00025759,2]
[326763967,1715332233301,-150.0,0.00025792,2]
[326763968,1715332233310,-150.0,0.00025796,2]
[326763969,1715332233319,-150.0,0.00025812,2]
[326763970,1715332233328,-2009.8522911,0.00025831,2]
[326763971,1715332233337,-150.0,0.00025831,2]
[326763972,1715332233346,-150.0,0.00025838,2]
[326763973,1715332233355,-150.0,0.00025847,2]
[326763974,1715332233364,-158.24,0.0002589,2]
[326763975,1715332233374,-150.0,0.00025897,2]
[326763976,1715332233384,-1000.0,0.000259,2]
[326763977,1715332233393,-150.0,0.00025901,2]
[326763978,1715332233402,-171.17183142,0.0002591,2]
[326763979,1715332233411,-19537.51718335,0.00025927,2]
[326763980,1715332233421,-150.0,0.00025928,2]
[326763981,1715332233430,-150.0,0.00025941,2]
[326763982,1715332233439,-150.0,0.00025953,2]
[326763983,1715332233448,-150.0,0.00025957,2]
[326763984,1715332233456,-150.0,0.00025962,2]
[326763985,1715332233466,-150.0,0.00025967,2]
[326763986,1715332233475,-150.0,0.00025987,2]
[326763987,1715332233484,-150.0,0.00025993,2]
[326763988,1715332233493,-5697.73217283,0.00026,2]
[326763989,1715332233502,-14680.12206296,0.00026,14]
[326763990,1715332233968,-135310.67793704,0.00026,14]
[326763991,1715332233977,-150.0,0.00026021,2]
[326763992,1715332233986,-281.68329737,0.00026027,3]
[326763993,1715332233995,-150.0,0.00026041,2]
[326763994,1715332234004,-150.0,0.00026052,2]
[326763995,1715332234013,-154.44090507,0.00026053,2]
[326763996,1715332234022,-150.0,0.00026059,2]
[326763997,1715332234031,-150.0,0.00026076,2]
[326763998,1715332234040,-150.0,0.00026097,2]
[326763999,1715332234049,-150.0,0.00026129,2]
[326764000,1715332234058,-1500.0,0.00026136,2]
[326764001,1715332234152,-150.0,0.00026142,2]
[326764002,1715332234217,-150.0,0.00026142,2]
[326764003,1715332234227,-150.0,0.00026152,2]
[326764004,1715332234237,-150.0,0.00026176,2]
[326764005,1715332234246,-1500.0,0.00026179,2]
[326764006,1715332234255,-150.0,0.00026186,2]
[326764007,1715332234268,-150.0,0.000262,2]
[326764008,1715332234278,-150.0,0.00026203,2]
[326764009,1715332234287,-150.0,0.00026207,2]
[326764010,1715332234296,-384.82,0.00026218,2]
[326764011,1715332234306,-150.0,0.00026221,2]
[326764012,1715332234316,-11957.47368611,0.00026228,2]
[326764013,1715332234325,-1831.02330437,0.00026228,2]
[326764014,1715332234335,-150.0,0.00026236,2]
[326764015,1715332234344,-150.0,0.00026238,2]
[326764016,1715332234355,-150.0,0.00026241,2]
[326764017,1715332234365,-1500.0,0.00026243,2]
[326764018,1715332234374,-150.0,0.00026244,2]
[326764019,1715332234384,-150.0,0.00026247,2]
[326764020,1715332234395,-150.0,0.0002625,2]
[326764021,1715332234404,-1500.0,0.00026257,2]
[326764022,1715332234413,-150.0,0.00026261,2]
[326764023,1715332234422,-1500.0,0.00026262,2]
[326764024,1715332234432,-150.0,0.00026265,2]
[326764025,1715332234442,-1500.0,0.00026284,2]
[326764026,1715332234451,-300.0,0.00026301,2]
[326764027,1715332234459,-150.0,0.0002634,2]
[326764028,1715332234470,-150.0,0.0002634,2]
[326764029,1715332234479,-150.0,0.00026341,2]
[326764030,1715332234487,-150.0,0.00026348,2]
[326764031,1715332234496,-150.0,0.00026355,2]
[326764032,1715332234505,-19537.51718335,0.00026375,2]
[326764033,1715332234514,-150.0,0.00026384,2]
[326764034,1715332234523,-511.76316713,0.00026384,2]
[326764035,1715332234618,-988.23683287,0.00026384,2]
[326764036,1715332234627,-1500.0,0.00026393,2]
[326764037,1715332234637,-500.0,0.00026397,2]
[326764038,1715332234646,-500.0,0.00026397,2]
[326764039,1715332234657,-500.0,0.00026397,2]
[326764040,1715332234667,-500.0,0.00026397,2]
[326764041,1715332234677,-500.0,0.00026397,2]
[326764042,1715332234686,-500.0,0.00026397,2]
[326764043,1715332234696,-500.0,0.00026397,2]
[326764044,1715332234707,-500.0,0.00026397,2]
[326764045,1715332234716,-500.0,0.00026397,2]
[326764046,1715332234725,-500.0,0.00026397,2]
[326764047,1715332234734,-500.0,0.00026397,2]
[326764048,1715332234743,-500.0,0.00026397,2]
[326764049,1715332234752,-500.0,0.00026397,2]
[326764050,1715332234761,-500.0,0.00026397,2]
[326764051,1715332234770,-500.0,0.00026397,2]
[326764052,1715332234779,-500.0,0.00026397,2]
[326764053,1715332234788,-500.0,0.00026397,2]
[326764054,1715332234797,-500.0,0.00026397,2]
[326764055,1715332234806,-500.0,0.00026397,2]
[326764056,1715332234815,-500.0,0.00026397,2]
[326764057,1715332234824,-500.0,0.00026397,2]
[326764058,1715332234833,-500.0,0.00026397,2]
[326764059,1715332234842,-500.0,0.00026397,2]
[326764060,1715332234851,-500.0,0.00026397,2]
[326764061,1715332234861,-500.0,0.00026397,2]
[326764062,1715332234870,-500.0,0.00026397,2]
[326764063,1715332234879,-500.0,0.00026397,2]
[326764064,1715332234889,-500.0,0.00026397,2]
[326764065,1715332234898,-500.0,0.00026397,2]
[326764066,1715332234907,-500.0,0.00026397,2]
[326764067,1715332234916,-500.0,0.00026397,2]
[326764068,1715332234925,-340.68,0.00026397,2]
[326764069,1715332234934,-500.0,0.00026397,2]
[326764070,1715332234943,-200.91565886,0.00026402,2]
[326764071,1715332234953,-1500.0,0.00026402,2]
[326764072,1715332234962,-150.0,0.00026411,2]
[326764073,1715332234972,-150.0,0.00026414,2]
[326764074,1715332234981,-1500.0,0.0002642,2]
[326764075,1715332234990,-1500.0,0.00026422,2]
[326764076,1715332235000,-1500.0,0.00026425,2]
[326764077,1715332235009,-1242.52089332,0.0002647,2]
[326764078,1715332235018,-1500.0,0.00026481,2]
[326764079,1715332235028,-150.0,0.00026483,2]
[326764080,1715332235037,-150.0,0.00026488,2]
[326764081,1715332235046,-150.0,0.00026508,2]
[326764082,1715332235055,-1500.0,0.00026509,2]
[326764083,1715332235065,-1500.0,0.00026512,2]
[326764084,1715332235073,-1500.0,0.00026516,2]
[326764085,1715332235083,-1500.0,0.00026521,2]
[326764086,1715332235091,-150.0,0.00026529,2]
[326764087,1715332235100,-150.0,0.00026532,2]
[326764088,1715332235109,-1500.0,0.00026542,2]
[326764089,1715332235118,-150.0,0.00026551,2]
[326764090,1715332235127,-150.0,0.00026554,2]
[326764091,1715332235136,-1500.0,0.00026557,2]
[326764092,1715332235145,-1500.0,0.0002657,2]
[326764093,1715332235154,-200.0,0.00026575,2]
[326764094,1715332235164,-2500.0,0.00026575,2]
[326764095,1715332235173,-2500.0,0.00026575,2]
[326764096,1715332235182,-2500.0,0.00026575,2]
[326764097,1715332235196,-2500.0,0.00026575,2]
[326764098,1715332235205,-2500.0,0.00026575,2]
[326764099,1715332235215,-2500.0,0.00026575,2]
[326764100,1715332235224,-2500.0,0.00026575,2]
[326764101,1715332235234,-2500.0,0.00026575,2]
[326764102,1715332235243,-2500.0,0.00026575,2]
[326764103,1715332235252,-2500.0,0.00026575,2]
[326764104,1715332235261,-2500.0,0.00026575,2]
[326764105,1715332235274,-2500.0,0.00026575,2]
[326764106,1715332235284,-2500.0,0.00026575,2]
[326764107,1715332235293,-2500.0,0.00026575,2]
[326764108,1715332235303,-1383.25781987,0.00026575,2]
[326764109,1715332235312,-2500.0,0.00026575,3]
[326764110,1715332235321,-2500.0,0.00026575,3]
[326764111,1715332235331,-158.57849673,0.00026575,3]
[326764112,1715332235340,-419.95,0.00026575,2]
[326764113,1715332235349,-1500.0,0.00026586,2]
[326764114,1715332235358,-150.0,0.00026597,2]
[326764115,1715332235367,-1500.0,0.00026603,2]
[326764116,1715332235376,-1500.0,0.00026619,2]
[326764117,1715332235386,-1500.0,0.00026622,2]
[326764118,1715332235396,-150.0,0.00026622,2]
[326764119,1715332235406,-1500.0,0.00026628,2]
[326764120,1715332235416,-1500.0,0.00026632,2]
[326764121,1715332235426,-150.0,0.00026635,2]
[326764122,1715332235435,-150.0,0.00026637,2]
[326764123,1715332235444,-1500.0,0.00026647,2]
[326764124,1715332235454,-1000.0,0.00026647,2]
[326764125,1715332235463,-1500.0,0.0002665,2]
[326764126,1715332235472,-1500.0,0.00026653,2]
[326764127,1715332235481,-150.0,0.00026653,2]
[326764128,1715332235491,-1500.0,0.00026664,2]
[326764129,1715332235500,-1500.0,0.00026666,2]
[326764130,1715332235511,-150.0,0.00026672,2]
[326764131,1715332235520,-150.0,0.00026676,2]
[326764132,1715332235530,-150.0,0.00026679,2]
[326764133,1715332235539,-769.0,0.00026689,2]
[326764134,1715332235548,-150.0,0.00026698,2]
[326764135,1715332235558,-1500.0,0.00026705,2]
[326764136,1715332235567,-1500.0,0.00026709,2]
[326764137,1715332235577,-150.0,0.00026711,2]
[326764138,1715332235587,-150.0,0.00026711,2]
[326764139,1715332235597,-150.0,0.00026716,2]
[326764140,1715332235607,-150.0,0.00026717,2]
[326764141,1715332235616,-1500.0,0.00026727,2]
[326764142,1715332235627,-150.0,0.00026753,2]
[326764143,1715332235637,-1500.0,0.00026761,2]
[326764144,1715332235646,-150.0,0.00026765,2]
[326764145,1715332235655,-1500.0,0.00026769,2]
[326764146,1715332235664,-150.0,0.00026771,2]
[326764147,1715332235673,-150.0,0.00026776,2]
[326764148,1715332235682,-150.0,0.00026779,2]
[326764149,1715332235692,-150.0,0.0002678,2]
[326764150,1715332235703,-150.0,0.00026791,2]
[326764151,1715332235712,-150.0,0.00026793,2]
[326764152,1715332235722,-1500.0,0.00026797,2]
[326764153,1715332235731,-1500.0,0.00026797,2]
[326764154,1715332235740,-215.98576016,0.000268,2]
[326764155,1715332235750,-150.0,0.000268,5]
[326764156,1715332235760,-265.35318267,0.000268,2]
[326764157,1715332235770,-150.0,0.00026804,2]
[326764158,1715332235779,-16005.51509768,0.00026824,2]
[326764159,1715332235792,-380.03886704,0.00026824,2]
[326764160,1715332235805,-1565.01210499,0.00026824,2]
[326764161,1715332235821,-1586.95111364,0.00026824,2]
[326764162,1715332235830,-150.0,0.00026829,2]
[326764163,1715332235839,-280.73855875,0.0002683,2]
[326764164,1715332235883,-1219.26144125,0.0002683,2]
[326764165,1715332235894,-1500.0,0.00026834,2]
[326764166,1715332235903,-1500.0,0.00026842,2]
[326764167,1715332235912,-2602.28168975,0.00026849,2]
[326764168,1715332235921,-300.84,0.00026849,2]
[326764169,1715332235931,-300.0,0.00026849,2]
[326764170,1715332235940,-369.42,0.00026849,2]
[326764171,1715332235949,-300.0,0.00026849,2]
[326764172,1715332235958,-150.0,0.00026855,2]
[326764173,1715332235967,-215.43441576,0.00026856,2]
[326764174,1715332235976,-1500.0,0.0002687,2]
[326764175,1715332235986,-150.0,0.0002688,2]
[326764176,1715332235995,-10000.0,0.00026882,2]
[326764177,1715332236004,-1500.0,0.0002689,2]
[326764178,1715332236014,-1500.0,0.00026893,2]
[326764179,1715332236023,-150.0,0.00026899,2]
[326764180,1715332236033,-351055.07860762,0.000269,6]
[326764181,1715332236048,-1299.31166513,0.000269,6]
[326764182,1715332236059,-13154.50095883,0.000269,6]
[326764183,1715332236071,-328.54733044,0.000269,6]
[326764205,1715332238163,-344.68046231,0.000129,2]
[326764208,1715332238173,-6892.23522243,0.000269,6]
[326764211,1715332238182,-150.0,0.000269,2]
[326764213,1715332238196,-1500.0,0.00026905,2]
[326764216,1715332238205,-200.0,0.00026913,2]
[326764218,1715332238215,-1000.0,0.00026913,2]
[326764219,1715332238227,-500.0,0.00026913,2]
[326764220,1715332238236,-200.0,0.00026913,2]
[326764221,1715332238245,-171.17183142,0.00026921,2]
[326764222,1715332238255,-1500.0,0.00026921,2]
[326764223,1715332238265,-1000.0,0.00026927,2]
[326764224,1715332238274,-150.0,0.00026931,2]
[326764225,1715332238284,-150.0,0.00026946,2]
[326764226,1715332238293,-1500.0,0.00026948,2]
[326764228,1715332238303,-1500.0,0.00026949,2]
[326764229,1715332238311,-1500.0,0.00026951,2]
[326764231,1715332238322,-1500.0,0.00026953,2]
[326764233,1715332238330,-1500.0,0.00026954,2]
[326764235,1715332238339,-150.0,0.00026967,2]
[326764237,1715332238348,-150.0,0.00026974,2]
[326764239,1715332238358,-1500.0,0.00026979,2]
[326764241,1715332238367,-150.0,0.0002698,2]
[326764243,1715332238376,-1398.0,0.00026982,2]
[326764246,1715332238386,-972.0,0.00026982,2]
[326764247,1715332238397,-543.0,0.00026982,2]
[326764249,1715332238406,-1227.0,0.00026982,2]
[326764252,1715332238416,-1260.0,0.00026982,2]
[326764253,1715332238425,-1789.0,0.00026982,2]
[326764256,1715332238434,-2412.0,0.00026982,2]
[326764258,1715332238445,-724.427,0.00026982,2]
[326764260,1715332238454,-215.0,0.00026982,2]
[326764262,1715332238463,-444.0,0.00026982,2]
[326764263,1715332238473,-3153.0,0.00026982,2]
[326764266,1715332238482,-288.0,0.00026982,2]
[326764268,1715332238492,-3122.855,0.00026982,2]
[326764269,1715332238501,-5909.0,0.00026982,2]
[326764271,1715332238511,-37815.0,0.00026982,2]
[326764274,1715332238521,-936.212,0.00026982,2]
[326764276,1715332238531,-1500.0,0.00026998,2]
[326764278,1715332238540,-1741.42627628,0.00027,2]
[326764280,1715332238549,-149195.8082096,0.00027,2]
[326764282,1715332238559,-5699.08966293,0.00027,7]
[326764284,1715332238568,-150.0,0.00027,2]
[326764286,1715332238577,-1500.0,0.00027002,2]
[326764288,1715332238587,-1500.0,0.00027004,2]